bitfinex/quotes_ETHUSD_20250801
["timestamp","ask_amount","ask_price","bid_price","bid_amount"]
[1754061753267,4.649,3589.6,3589.0,2.78623488]
[1754061753584,0.4805,3589.5,3589.0,2.78623488]
[1754061753746,4.649,3589.6,3589.0,2.78622576]
[1754061753747,0.1392,3589.1,3589.0,2.78622576]
[1754061753944,0.6197,3589.1,3588.9,2.78635393]
[1754061754258,0.6197,3589.1,3588.4,0.1392]
[1754061754587,0.6197,3589.1,3588.9,2.78631719]
[1754061754748,0.9504,3589.0,3588.1,2.78694251]
[1754061754952,0.9504,3589.0,3588.1,0.1392]
[1754061755150,0.1392,3588.6,3588.5,2.7866538]
[1754061755472,0.6197,3588.6,3588.3,2.78675766]
[1754061755651,0.1392,3588.4,3588.2,2.78687625]
[1754061756003,0.6197,3588.4,3588.2,2.78684362]
[1754061756294,0.4805,3589.4,3589.1,2.78616246]
[1754061756588,0.4805,3589.4,3588.3,0.02786834]
[1754061756589,10.0,3589.5,3589.4,2.78598094]
[1754061756954,0.1392,3590.3,3589.4,0.1392]
[1754061757177,0.1392,3590.3,3590.2,2.78536014]
[1754061757406,2.78427797,3591.6,3590.2,2.78536014]
[1754061757407,0.4805,3591.2,3590.8,2.78489473]
[1754061757571,0.1392,3591.0,3590.8,2.78489473]
[1754061757901,0.9504,3590.9,3590.3,2.78520671]
[1754061758188,0.1392,3590.7,3590.4,2.78520396]
[1754061758394,0.97817626,3590.6,3589.6,2.78576455]
[1754061758578,4.64,3590.5,3588.8,2.78643249]
[1754061758778,4.64,3590.5,3589.7,2.78567958]
[1754061758955,4.645,3590.4,3589.7,2.78567958]
[1754061759350,0.50827626,3590.3,3588.8,0.4393]
[1754061759565,0.97817626,3590.3,3588.3,0.4393]
[1754061759796,3.73568343,3590.3,3589.6,2.78575781]
[1754061759998,3.73568343,3590.3,3588.3,0.65349246]
[1754061759999,0.4805,3590.3,3589.4,0.0278598]
[1754061760199,0.4805,3590.3,3589.9,2.78552436]
[1754061760398,3.25480144,3590.8,3589.7,2.78574052]
[1754061760399,2.78525495,3590.4,3589.7,2.78574052]
[1754061760722,2.78525495,3590.4,3588.7,2.78652436]
[1754061760723,4.644,3590.2,3588.7,2.78652436]
[1754061760910,4.644,3590.2,3588.6,0.7075]
[1754061760911,0.4805,3590.3,3588.9,3.0]
[1754061761111,4.644,3590.2,3589.7,2.78567779]
[1754061761312,0.9504,3590.1,3588.3,0.20659704]
[1754061761512,0.9504,3590.0,3587.8,3.49469201]
[1754061761723,4.644,3590.2,3588.9,2.7863517]
[1754061761724,2.78589848,3589.6,3588.9,2.7863517]
[1754061761890,10.0,3590.2,3588.2,7.644]
[1754061762222,4.648,3590.1,3588.8,2.78644672]
[1754061762410,3.76376275,3590.0,3588.2,0.7075]
[1754061762610,3.76376275,3590.0,3588.1,3.0]
[1754061762611,0.97817626,3590.0,3588.1,3.0]
[1754061762820,0.9504,3589.9,3588.2,0.02786912]
[1754061762985,4.647,3589.8,3588.2,0.73536912]
[1754061763185,4.647,3589.8,3589.3,2.78598857]
[1754061763401,0.4805,3589.7,3589.4,2.78595746]
[1754061763604,0.9504,3589.6,3589.1,2.78619711]
[1754061763787,0.4805,3589.5,3588.9,2.78636908]
[1754061764009,0.9504,3589.5,3588.1,3.0]
[1754061764200,2.78599644,3589.4,3588.7,2.78646084]
[1754061764390,0.9504,3589.5,3588.3,0.02786834]
[1754061764591,0.4805,3589.5,3588.4,0.02786757]
[1754061764793,0.4699,3590.0,3589.3,2.7859903]
[1754061764794,0.9504,3590.0,3589.3,2.7859903]
[1754061764995,4.647,3589.9,3589.6,2.78581856]
[1754061765191,4.647,3589.8,3589.0,0.02786291]
[1754061765411,4.647,3589.8,3589.7,2.78574811]
[1754061765734,6.692,3590.3,3589.9,2.78554364]
[1754061765937,5.1398,3590.2,3589.7,2.78572609]
[1754061766252,0.9331,3590.2,3589.9,2.7855434]
[1754061766540,0.4938,3590.9,3590.2,2.78536014]
[1754061766761,4.643,3590.8,3589.4,0.2960598]
[1754061766896,4.643,3590.8,3590.7,2.78497228]
[1754061767094,0.4938,3590.9,3589.6,0.4588]
[1754061767302,0.4393,3591.2,3590.9,2.78474804]
[1754061767303,4.644,3591.0,3590.9,2.78474804]
[1754061768444,6.693,3591.6,3591.3,2.784507]
[1754061768647,0.1392,3591.9,3590.9,0.598]
[1754061768802,4.7792,3591.9,3591.8,2.78411938]
[1754061769003,4.7792,3591.9,3591.7,2.78417551]
[1754061769204,0.1392,3591.9,3591.4,0.1392]
[1754061769522,0.633,3591.9,3591.4,0.1392]
[1754061769715,3.71727783,3591.8,3591.4,0.1392]
[1754061769919,0.1392,3591.5,3591.0,2.9239156]
[1754061770115,0.9331,3591.4,3590.3,3.0]
[1754061770325,0.633,3591.4,3590.9,0.1392]
[1754061770521,0.9331,3591.3,3590.7,2.78492675]
[1754061770707,0.52157626,3591.2,3589.4,3.20466869]
[1754061771087,0.52157626,3591.2,3588.5,0.002]
[1754061771088,2.7849804,3590.7,3589.8,2.78560212]
[1754061771246,2.78512965,3590.5,3589.3,3.0]
[1754061771448,0.4938,3590.4,3589.4,0.0278598]
[1754061771607,2.78495103,3590.8,3590.1,2.78537479]
[1754061771808,0.1392,3590.5,3590.0,0.1392]
[1754061772009,0.4938,3590.4,3590.1,2.78543366]
[1754061772209,0.4938,3590.4,3590.2,2.7853428]
[1754061772426,0.1392,3590.5,3590.1,2.78542338]
[1754061772640,4.635,3590.4,3590.2,2.78530827]
[1754061772841,4.635,3590.4,3590.1,2.78541049]
[1754061772842,5.1288,3590.4,3590.1,2.78541049]
[1754061773028,5.1288,3590.4,3590.2,2.78535169]
[1754061773522,5.1288,3590.4,3590.1,2.78542912]
[1754061773816,5.1288,3590.4,3590.0,2.92469771]
[1754061774151,5.1288,3590.4,3590.0,0.1392]
[1754061774348,5.1288,3590.4,3590.0,2.92468972]
[1754061774565,0.9331,3590.3,3589.9,2.78559291]
[1754061774897,0.9331,3590.3,3589.7,2.92488841]
[1754061774898,0.633,3590.2,3589.7,2.92488841]
[1754061775061,0.4938,3590.1,3589.9,2.78558242]
[1754061775387,0.4938,3590.1,3589.9,2.78553772]
[1754061775594,0.1392,3590.2,3590.1,2.78543773]
[1754061775958,12.78451087,3591.3,3590.1,2.78543773]
[1754061775959,0.1392,3590.9,3590.4,2.78520499]
[1754061776378,0.1392,3590.9,3590.6,2.78500022]
[1754061776592,0.1392,3590.9,3590.4,0.1392]
[1754061776796,0.1392,3590.9,3590.5,2.78507857]
[1754061777002,0.1392,3590.9,3590.6,2.78503337]
[1754061777293,0.1392,3590.9,3590.4,0.1392]
[1754061777493,0.1392,3590.9,3590.8,2.78489473]
[1754061777702,5.1118,3591.8,3591.3,2.78448351]
[1754061777909,2.78437055,3591.5,3590.8,0.1392]
[1754061778193,0.1392,3591.1,3590.5,0.1392]
[1754061778401,0.1392,3591.1,3590.7,2.78490047]
[1754061778614,0.4938,3591.0,3590.5,0.1392]
[1754061778820,0.4938,3590.9,3590.5,0.1392]
[1754061779003,0.66077626,3590.9,3590.4,2.78513514]
[1754061779314,0.4938,3590.8,3590.3,0.1392]
[1754061779526,4.615,3590.7,3590.3,0.1392]
[1754061779673,0.1392,3590.4,3589.9,0.1392]
[1754061779869,0.9331,3590.3,3589.9,0.1392]
[1754061780170,0.1392,3590.4,3590.2,2.78530351]
[1754061780384,2.78411288,3591.9,3591.2,2.78458453]
[1754061780614,0.82109058,3592.7,3591.2,3.727]
[1754061780834,0.4938,3593.6,3591.9,3.0]
[1754061781108,4.616,3593.6,3592.0,0.16703964]
[1754061781322,4.616,3593.6,3592.5,0.1392]
[1754061781503,0.1392,3593.1,3592.6,0.02783499]
[1754061781684,0.1392,3593.1,3592.5,0.1392]
[1754061781873,0.1392,3593.1,3592.6,2.78349941]
[1754061782230,0.1392,3593.1,3592.5,0.1392]
[1754061782442,0.1392,3593.1,3590.7,2.78494688]
[1754061782443,0.1392,3592.7,3591.3,7.39949307]
[1754061782611,0.1392,3592.3,3591.6,0.1392]
[1754061782817,0.1392,3592.1,3591.6,0.1392]
[1754061783131,2.78380538,3593.5,3590.1,4.8842]
[1754061783132,0.1392,3591.7,3590.1,4.8842]
[1754061783355,0.1392,3591.7,3591.6,2.78427441]
[1754061783549,0.1392,3591.7,3591.6,3.51127441]
[1754061783698,0.4938,3592.7,3591.6,0.727]
[1754061783895,0.1392,3592.4,3592.1,2.78387845]
[1754061784095,0.1392,3592.4,3592.0,2.78395432]
[1754061784401,0.1392,3592.4,3591.9,0.1392]
[1754061784730,0.1392,3592.4,3591.9,2.92324109]
[1754061784940,0.1392,3592.4,3592.0,2.78392854]
[1754061785234,0.1392,3592.4,3591.9,0.1392]
[1754061785543,0.1392,3592.4,3592.3,2.78373187]
[1754061785697,4.619,3592.7,3592.4,2.78364084]
[1754061786033,4.619,3593.0,3591.9,0.67280615]
[1754061786198,0.4938,3593.3,3592.0,2.78396436]
[1754061786403,0.4938,3593.3,3593.0,2.78317905]
[1754061786600,0.4393,3593.7,3592.3,0.4588]
[1754061786836,4.62,3593.5,3592.5,2.78357689]
[1754061786995,4.62,3593.5,3592.3,0.4588]
[1754061787338,4.62,3593.5,3592.4,2.78365438]
[1754061787642,4.619,3593.5,3592.4,2.78365438]
[1754061787846,0.001,3593.5,3593.4,2.78287972]
[1754061788136,0.001,3593.5,3593.4,3.53770851]
[1754061788356,0.001,3593.5,3593.4,3.67657399]
[1754061788501,1e-08,3593.5,3593.4,6.6487452]
[1754061788700,1e-08,3593.5,3593.4,2.78287972]
[1754061788900,1e-08,3593.5,3592.7,4.617]
[1754061788901,1e-08,3593.5,3590.9,9.47379879]
[1754061789126,1e-08,3593.5,3592.4,0.13996219]
[1754061789438,1e-08,3593.5,3593.4,2.78287972]
[1754061790987,1e-08,3593.5,3592.3,0.727]
[1754061791192,1e-08,3593.5,3593.4,2.78287972]
[1754061791491,1e-08,3593.5,3592.6,3.0]
[1754061791687,1e-08,3593.5,3593.3,2.7829562]
[1754061791991,1e-08,3593.5,3592.3,0.727]
[1754061792301,1e-08,3593.5,3592.6,2.78349941]
[1754061792506,1e-08,3593.5,3592.9,2.78325625]
[1754061792663,0.9331,3593.4,3591.7,3.05236399]
[1754061792846,0.96087626,3593.3,3591.3,3.24330569]
[1754061793157,2.78328341,3592.9,3592.1,2.78383789]
[1754061793358,0.02777626,3593.1,3591.6,0.13997258]
[1754061793585,0.9331,3593.2,3591.6,0.13997258]
[1754061793811,1e-08,3593.5,3592.0,0.29603964]
[1754061794016,1e-08,3593.5,3593.4,2.78287972]
[1754061794592,1e-08,3593.5,3592.9,0.727]
[1754061794593,0.49380001,3593.5,3592.9,2.78319919]
[1754061794911,1e-08,3593.5,3592.6,3.0]
[1754061795128,1e-08,3593.5,3592.3,3.727]
[1754061795428,1e-08,3593.5,3593.4,2.78287972]
[1754061795719,1e-08,3593.5,3593.4,5.92207972]
[1754061795885,1e-08,3593.5,3593.4,2.92207972]
[1754061796068,1e-08,3593.5,3593.4,2.94990851]
[1754061796274,1e-08,3593.5,3593.4,2.92207972]
[1754061797719,1e-08,3593.5,3593.4,2.94990851]
[1754061798013,1e-08,3593.5,3593.4,3.64267972]
[1754061798211,1e-08,3593.5,3593.4,2.92207972]
[1754061798391,1e-08,3593.5,3593.4,0.1392]
[1754061799436,0.92180001,3593.5,3593.4,0.1392]
[1754061799582,0.92180001,3593.5,3593.3,0.1392]
[1754061799772,1e-08,3593.5,3593.3,0.1392]
[1754061799976,1e-08,3593.5,3592.8,4.631]
[1754061799977,0.4748,3593.4,3592.8,4.631]
[1754061800222,0.4748,3593.4,3593.2,0.1392]
[1754061800523,0.4748,3593.3,3593.2,0.1392]
[1754061800728,0.13920001,3593.5,3593.0,0.1392]
[1754061800878,1e-08,3593.5,3593.3,2.78289881]
[1754061801227,0.9218,3593.4,3593.2,0.1392]
[1754061801413,3.70475717,3593.3,3593.2,0.1392]
[1754061801576,3.70475866,3593.3,3592.4,2.78362856]
[1754061801909,0.94957626,3593.2,3591.9,4.83700615]
[1754061802207,1e-08,3593.5,3592.3,2.78368475]
[1754061802388,0.1392,3593.4,3592.9,0.1392]
[1754061802591,0.614,3593.4,3593.0,2.78317938]
[1754061802995,0.9218,3593.3,3592.6,2.7834902]
[1754061803198,0.1392,3593.2,3592.7,2.92261877]
[1754061803722,0.1392,3593.2,3593.1,2.78311207]
[1754061803896,0.13920001,3593.5,3593.0,2.92237715]
[1754061804217,0.13920001,3593.5,3593.0,0.1392]
[1754061804391,0.13920001,3593.5,3592.4,2.78365438]
[1754061804392,0.9218,3593.4,3592.4,2.78365438]
[1754061804723,0.9218,3593.4,3592.8,2.78326715]
[1754061804724,0.1392,3593.2,3592.8,2.78326715]
[1754061804926,0.1392,3593.2,3592.7,0.1392]
[1754061805365,0.1392,3593.4,3593.3,2.78295717]
[1754061805543,1e-08,3593.5,3593.4,2.78287972]
[1754061805744,1e-08,3593.5,3593.4,2.94990851]
[1754061805946,1e-08,3593.5,3593.4,2.92207972]
[1754061806890,1e-08,3593.5,3593.4,3.63797972]
[1754061807174,1e-08,3593.5,3593.4,6.63797972]
[1754061807555,1e-08,3593.5,3593.4,11.11577972]
[1754061807732,1e-08,3593.5,3593.4,11.80497972]
[1754061808240,1e-08,3593.5,3593.4,11.25497972]
[1754061808567,1e-08,3593.5,3593.4,11.80497972]
[1754061808802,0.1447996,3595.5,3593.9,2.78246949]
[1754061809007,0.4748,3595.4,3594.0,4.615]
[1754061809160,0.16697626,3595.3,3594.7,2.78179597]
[1754061809363,0.1392,3595.3,3594.7,0.1392]
[1754061809595,0.4748,3595.2,3594.7,0.1392]
[1754061809817,0.4748,3595.1,3594.7,0.1392]
[1754061809991,2.78164116,3595.0,3594.7,0.20686773]
[1754061810161,0.9218,3594.9,3594.5,0.1392]
[1754061810502,0.9218,3594.9,3594.3,0.1392]
[1754061810718,0.9218,3594.9,3593.9,0.2052803]
[1754061810719,2.7823098,3594.2,3593.9,0.2052803]
[1754061810920,0.9218,3594.1,3593.9,0.2052803]
[1754061811224,0.9218,3594.0,3593.8,2.78255198]
[1754061811380,0.4748,3593.9,3593.8,2.78255198]
[1754061811702,0.1392,3594.3,3593.8,0.2054474]
[1754061811884,0.1392,3594.4,3593.9,2.78243117]
[1754061812088,0.4748,3594.3,3593.9,2.78243117]
[1754061812287,0.9218,3594.2,3593.8,0.1392]
[1754061812534,0.9218,3594.1,3593.8,0.1392]
[1754061812701,2.78262906,3593.8,3593.4,0.1392]
[1754061812887,0.9218,3593.7,3593.4,0.1392]
[1754061813260,0.3871391,3593.6,3593.4,0.1392]
[1754061813460,0.1392,3593.9,3593.4,0.1392]
[1754061813759,0.1392,3594.9,3594.6,2.78192903]
[1754061813962,0.1392,3595.0,3593.8,0.1392]
[1754061814185,6.685,3595.1,3593.6,3.0]
[1754061814186,0.9218,3594.8,3593.6,3.0]
[1754061814397,0.1392,3594.5,3594.0,0.1392]
[1754061814601,0.9218,3594.4,3594.0,0.1392]
[1754061814897,0.1392,3594.1,3593.4,0.20517586]
[1754061815101,0.9218,3594.3,3593.1,2.78309637]
[1754061815102,0.38432605,3594.0,3593.1,2.78309637]
[1754061815402,0.38432605,3594.0,3592.8,3.7159]
[1754061815403,0.1392,3594.5,3593.9,2.78243632]
[1754061815698,0.1392,3594.5,3593.3,2.78290888]
[1754061815699,0.9218,3594.4,3594.0,0.1392]
[1754061815884,0.9218,3594.4,3593.5,0.1392]
[1754061815885,0.1402,3594.0,3593.5,0.1392]
[1754061816304,3.70434436,3593.9,3593.3,3.002]
[1754061816601,3.70434436,3593.9,3593.4,0.1392]
[1754061816811,1.61226606,3593.8,3593.3,0.002]
[1754061816979,0.1392,3593.7,3593.3,0.002]
[1754061817184,1.061,3593.7,3593.3,0.002]
[1754061817508,0.9218,3593.6,3593.3,0.002]
[1754061817705,3.70458126,3593.6,3593.3,0.002]
[1754061817905,1.30617813,3593.5,3593.3,0.002]
[1754061818068,0.85917813,3593.5,3593.3,0.002]
[1754061818276,0.1392,3593.7,3593.3,0.002]
[1754061819018,0.1392,3593.7,3593.6,2.78272484]
[1754061819173,0.1392,3593.7,3593.6,3.49862484]
[1754061819372,0.1392,3593.7,3593.6,2.78272484]
[1754061819598,0.001,3594.0,3593.9,2.78249255]
[1754061819904,0.001,3594.0,3593.9,0.1392]
[1754061820079,0.001,3594.0,3593.9,2.92169255]
[1754061820281,0.001,3594.0,3593.9,6.35292489]
[1754061820580,0.001,3594.0,3593.9,7.75802489]
[1754061820581,1e-08,3594.0,3593.9,7.75802489]
[1754061820780,0.001,3594.4,3594.3,2.7821829]
[1754061820985,1e-08,3594.4,3594.3,10.3831829]
[1754061821181,1e-08,3594.4,3594.3,5.9213829]
[1754061822417,1e-08,3594.4,3594.3,3.1392]
[1754061822615,0.47480001,3594.4,3594.3,5.9213829]
[1754061822800,1e-08,3594.4,3594.3,5.9213829]
[1754061823718,1e-08,3594.4,3594.3,5.7821829]
[1754061823892,1e-08,3594.4,3594.3,9.3921829]
[1754061825025,1e-08,3594.4,3594.3,13.2692829]
[1754061825196,1e-08,3594.4,3594.3,13.9851829]
[1754061825922,1e-08,3594.4,3594.3,5.9213829]
[1754061826623,1e-08,3594.4,3594.3,3.1392]
[1754061826804,1e-08,3594.4,3594.3,5.9213829]
[1754061828422,1e-08,3594.4,3594.3,6.3643829]
[1754061828634,1e-08,3594.4,3594.3,6.6504829]
[1754061828787,1e-08,3594.4,3594.3,23.8237159]
[1754061829289,1e-08,3594.4,3594.3,24.3136159]
[1754061830294,1e-08,3594.4,3594.3,37.6903829]
[1754061830627,1e-08,3596.1,3596.0,10.59543263]
[1754061830939,1e-08,3596.1,3596.0,10.50606763]
[1754061831107,1e-08,3596.1,3596.0,5.92006763]
[1754061831506,0.92210001,3596.1,3595.5,2.78118379]
[1754061831806,0.9221,3596.0,3595.6,0.1392]
[1754061832330,0.9221,3595.9,3595.5,0.34593442]
[1754061832536,0.4899,3595.9,3595.8,2.7810223]
[1754061832706,0.9221,3595.9,3595.5,0.21151549]
[1754061832912,1e-08,3596.1,3595.8,7.0]
[1754061833112,0.58405387,3596.1,3595.8,7.0]
[1754061833311,2.78094496,3595.9,3595.8,7.0]
[1754061833495,1.0613,3595.9,3595.8,7.0]
[1754061833695,0.9221,3595.9,3595.8,7.0]
[1754061834719,3.70304496,3595.9,3595.8,7.0]
[1754061835420,8.29404496,3595.9,3595.8,7.0]
[1754061835626,6.62058558,3595.9,3594.7,2.78186466]
[1754061835825,2.78131689,3595.5,3594.7,2.78186466]
[1754061836031,4.599,3595.8,3594.7,0.2081372]
[1754061836236,0.9221,3595.7,3594.4,3.0]
[1754061836437,0.94987626,3595.6,3594.1,4.598]
[1754061836745,2.78150348,3595.2,3594.5,2.7819594]
[1754061836948,2.7814324,3595.3,3594.6,2.78193753]
[1754061837149,2.78140554,3595.4,3594.7,2.78180688]
[1754061837443,0.4899,3595.2,3594.2,3.0]
[1754061837742,0.4899,3595.2,3594.1,7.598]
[1754061837743,0.94354283,3595.2,3594.8,2.78178474]
[1754061837960,0.4899,3595.2,3595.0,2.78156417]
[1754061838110,0.4899,3595.2,3594.4,3.0]
[1754061838309,0.4899,3595.2,3594.6,2.7819507]
[1754061838534,0.4899,3595.2,3594.9,2.78171735]
[1754061838934,0.4322,3595.5,3595.0,2.781589]
[1754061839157,0.4899,3595.4,3594.8,2.7817226]
[1754061839315,0.9221,3595.4,3595.1,2.78154447]
[1754061839524,0.4899,3595.4,3595.1,2.78151273]
[1754061839854,1e-08,3596.1,3594.6,0.0278195]
[1754061840152,1e-08,3596.1,3596.0,2.78086763]
[1754061840365,0.48990001,3596.1,3595.0,3.0]
[1754061840532,0.48990001,3596.1,3593.9,0.002]
[1754061840533,2.78210549,3594.4,3593.9,0.002]
[1754061840857,0.27821055,3594.4,3593.9,0.002]
[1754061841021,2.78232015,3594.2,3593.9,0.002]
[1754061841220,0.02777626,3594.2,3593.9,0.002]
[1754061841475,0.4899,3594.8,3593.9,0.002]
[1754061841620,1.04241,3594.8,3593.9,0.002]
[1754061841819,1.04241,3594.8,3594.3,2.78212775]
[1754061842057,1.04241,3594.8,3593.9,2.78441956]
[1754061842058,0.9221,3594.7,3593.9,2.78441956]
[1754061842260,14.01862699,3594.0,3593.9,0.002]
[1754061842430,7.38541513,3594.0,3593.9,0.002]
[1754061842629,1.93887379,3594.0,3593.9,0.002]
[1754061843016,1.50667379,3594.0,3593.9,0.002]
[1754061843354,0.4899,3594.0,3593.9,0.002]
[1754061843559,5.0742,3594.4,3593.9,0.002]
[1754061843868,0.9221,3594.0,3593.9,0.002]
[1754061844158,0.4899,3594.0,3593.9,0.002]
[1754061844681,0.9221,3594.0,3593.9,0.002]
[1754061844832,4.84505599,3594.0,3593.9,0.002]
[1754061845019,4.81727973,3594.0,3593.9,0.002]
[1754061845224,4.95647973,3594.0,3593.9,0.002]
[1754061845620,0.14,3594.6,3593.9,0.002]
[1754061845822,0.4899,3594.3,3593.9,0.002]
[1754061846019,0.6291,3594.3,3593.9,0.002]
[1754061846340,2.92161513,3594.0,3593.9,0.002]
[1754061846545,7.59639139,3594.0,3593.9,0.002]
[1754061846790,8.49071513,3594.0,3593.9,0.002]
[1754061847348,8.48771513,3594.0,3593.9,0.002]
[1754061847745,8.62771513,3594.0,3593.9,0.002]
[1754061847946,9.76871292,3594.0,3593.9,0.002]
[1754061848142,5.12471292,3594.0,3593.9,0.002]
[1754061848342,9.76871292,3594.0,3593.9,0.002]
[1754061848800,5.12471292,3594.0,3593.9,0.002]
[1754061848967,9.76671292,3594.0,3593.9,0.002]
[1754061849746,1.91009779,3594.0,3593.9,0.002]
[1754061849964,5.4051,3594.0,3593.9,0.002]
[1754061850148,4.776,3594.0,3593.9,0.002]
[1754061850348,8.50829139,3594.0,3593.9,0.002]
[1754061850551,8.48051513,3594.0,3593.9,0.002]
[1754061850747,2.78287972,3593.4,3593.3,0.002]
[1754061850989,2.78295717,3593.3,3591.3,2.78649679]
[1754061851192,2.78311207,3593.1,3591.5,2.78429842]
[1754061851470,2.78334446,3592.8,3591.5,0.20495525]
[1754061851687,2.78398087,3592.0,3591.3,5.7864932]
[1754061851882,5.1249,3591.9,3591.3,0.002]
[1754061852087,0.9221,3591.9,3591.3,0.002]
[1754061852288,2.78421469,3591.7,3591.3,0.002]
[1754061852468,2.78429117,3591.6,3591.3,0.002]
[1754061852792,0.4899,3591.6,3591.3,0.002]
[1754061853085,0.14,3592.0,3591.3,0.002]
[1754061853263,4.644,3591.6,3591.3,0.002]
[1754061853746,0.94987626,3591.5,3591.3,0.002]
[1754061853952,3.37159336,3591.4,3591.3,0.002]
[1754061854153,4.29369336,3591.4,3591.3,0.002]
[1754061854457,4.4059171,3591.4,3591.3,0.002]
[1754061854658,9.0569171,3591.4,3591.3,0.002]
[1754061855185,1.62148763,3591.4,3591.3,0.002]
[1754061855494,4.789,3591.4,3591.3,2.786507]
[1754061855991,4.788,3591.4,3591.3,2.786507]
[1754061856889,0.14,3591.4,3591.3,0.002]
[1754061857094,4.784,3591.5,3591.3,0.002]
[1754061857291,0.94987626,3591.4,3591.3,0.002]
[1754061857499,3.70652947,3591.4,3591.3,0.002]
[1754061857983,9.18110713,3591.4,3591.3,0.002]
[1754061858161,9.15333087,3591.4,3591.3,0.002]
[1754061858357,9.29333087,3591.4,3591.3,0.002]
[1754061858669,11.12677668,3591.4,3591.3,0.002]
[1754061859462,11.12677668,3591.4,3591.3,1e-08]
[1754061859658,11.12677668,3591.4,3589.2,3.50939664]
[1754061859659,0.55,3591.3,3589.2,0.7233]
[1754061859873,11.23621186,3591.1,3589.2,0.4477]
[1754061860197,2.78520499,3590.4,3588.8,0.7233]
[1754061860391,2.78520499,3590.4,3589.1,3.0]
[1754061860392,4.783,3590.3,3589.1,3.0]
[1754061860594,4.783,3590.3,3589.8,2.78566729]
[1754061860794,4.779,3590.3,3590.2,2.78536014]
[1754061860995,4.78,3590.3,3589.9,0.1392]
[1754061861158,5.2355,3590.3,3589.9,0.1392]
[1754061861494,2.78551327,3590.1,3589.9,0.1392]
[1754061861653,0.1392,3590.0,3589.5,0.1392]
[1754061861853,4.639,3589.9,3589.5,0.1392]
[1754061862059,4.639,3589.9,3589.8,2.78567051]
[1754061862398,4.639,3589.9,3589.6,2.78582571]
[1754061862796,4.639,3589.9,3589.5,0.1392]
[1754061863099,4.639,3589.9,3589.6,2.78580785]
[1754061863396,4.639,3589.9,3589.8,2.78567051]
[1754061863699,0.1392,3590.0,3589.9,2.78559291]
[1754061863998,4.631,3590.2,3590.1,2.7853757]
[1754061864661,5.6923,3590.2,3589.6,0.1392]
[1754061864862,0.1392,3590.0,3589.5,0.1392]
[1754061865187,0.1392,3590.0,3589.6,2.78582571]
[1754061865392,0.1392,3590.0,3589.5,0.1392]
[1754061865700,0.5947,3590.0,3589.6,2.78580565]
[1754061865997,0.1392,3590.0,3589.9,2.78559291]
[1754061866161,0.14,3590.3,3589.9,0.1392]
[1754061866357,0.14,3590.3,3590.2,2.78536014]
[1754061866595,0.14,3590.3,3590.2,2.92456014]
[1754061866898,0.14,3590.3,3590.2,0.1392]
[1754061867064,8.34438256,3590.3,3590.2,0.1392]
[1754061867259,6.68605106,3590.3,3590.2,0.1392]
[1754061867473,0.14,3590.6,3590.2,0.1392]
[1754061867673,0.14,3590.6,3589.1,3.21067367]
[1754061867674,0.1392,3590.4,3589.8,0.1392]
[1754061867886,2.78536014,3590.2,3588.4,0.13802622]
[1754061868089,4.775,3590.3,3588.8,0.1392]
[1754061868090,0.1392,3589.3,3588.8,0.1392]
[1754061868262,2.78644672,3588.8,3587.5,0.7219]
[1754061868465,4.64,3588.7,3588.3,0.1392]
[1754061868684,0.1392,3588.5,3588.0,0.1392]
[1754061868906,0.4555,3588.4,3587.7,2.78723404]
[1754061869113,0.1392,3588.3,3587.8,0.1392]
[1754061869316,0.6066,3588.5,3586.3,2.7883299]
[1754061869317,0.1392,3588.1,3587.6,0.1392]
[1754061869496,4.641,3588.2,3588.0,0.1392]
[1754061869668,5.2357,3588.2,3587.8,2.78721504]
[1754061870009,5.2357,3588.2,3587.7,0.1392]
[1754061870211,0.94987626,3588.1,3586.6,3.23578824]
[1754061870371,0.6066,3588.1,3586.7,0.35099882]
[1754061870568,0.94987626,3588.0,3586.4,0.20401304]
[1754061870772,0.1392,3587.3,3586.9,2.78789722]
[1754061871011,5.0965,3587.2,3586.9,2.78786922]
[1754061871211,0.4555,3587.1,3586.9,2.78786903]
[1754061871374,0.4555,3587.1,3587.0,2.78784499]
[1754061871573,0.4555,3587.1,3586.9,2.78790731]
[1754061871825,0.4555,3587.1,3584.4,10.68621186]
[1754061871826,1.0621,3587.0,3586.1,0.1392]
[1754061871973,1.0621,3587.0,3586.6,2.78814014]
[1754061872176,0.1392,3586.6,3586.5,2.78817217]
[1754061872398,4.9192,3586.6,3585.9,0.20748507]
[1754061872641,7.56815591,3586.6,3586.5,7.0]
[1754061872802,5.27192,3586.6,3586.5,7.0]
[1754061873173,1.08742,3586.6,3586.5,7.0]
[1754061873379,5.7121,3586.6,3586.5,7.0]
[1754061873685,0.2792,3586.6,3586.5,9.78823365]
[1754061873912,4.788,3586.6,3586.5,9.78823365]
[1754061874099,4.788,3586.6,3586.5,7.0]
[1754061874286,5.3827,3586.6,3586.5,7.0]
[1754061874485,6.66636315,3586.6,3586.5,7.0]
[1754061875144,1.55176315,3586.6,3585.1,3.62889375]
[1754061875330,4.793,3586.6,3586.3,2.78835445]
[1754061875476,0.1392,3586.4,3586.3,2.78835445]
[1754061875675,4.652,3586.4,3586.3,2.92755445]
[1754061875875,0.14,3586.6,3586.5,2.78823365]
[1754061876097,0.14,3586.6,3586.5,2.92743365]
[1754061876300,0.14,3586.6,3585.4,0.7219]
[1754061876614,5.1085,3586.9,3585.4,0.7219]
[1754061876615,0.1392,3586.5,3586.3,2.78835564]
[1754061876911,0.14,3586.8,3586.7,2.78807817]
[1754061877216,0.14,3586.8,3586.7,2.92727817]
[1754061877423,0.1392,3587.3,3586.7,0.1392]
[1754061877424,4.653,3587.1,3586.7,0.1392]
[1754061877583,4.653,3587.1,3586.7,2.92726044]
[1754061877785,0.2792,3587.3,3586.7,0.1392]